Workbook

Sheet Cadastros
B4: Cadastro de base Geral | D4: Cadastro da base de acidentes | J4: Cadastro de base DDS
B5: Setor | D5: Agente da lesão | F5: Caracterização de Acidentes | H5: Partes do corpo | J5: Método
B6: Operacional | D6: Acidente de carro | F6: Incapacitante | H6: Crânio | J6: Book DDs
B7: Adminstrativo | D7: Acidente de moto | F7: Não incapacitante | H7: Face | J7: Vídeo
B8: Financeiro | D8: Choque | F8: Com restrição | H8: Olhos | J8: Palestra
B9: Comercial | D9: Manipulação de ferramentas | F9: Sem restrição | H9: Pescoço | J9: Power Point
B10: Usinagem | D10: Queda de escada | F10: Com danos materiais | H10: Ombro
B11: Caldeiraria | D11: Queda de telhado | F11: Sem danos materiais | H11: Braço
B12: Solda | F12: Fatal | H12: Cotovelo
B13: Pintura | H13: Punho
B14: Montagem | H14: Mão
H15: Dedos mão
H16: Abdômen
H17: Reg. Lombar
H18: Perna
H19: Pé
H20: Dedos Pé
H21: Orgãos internos
H22: Joelho
B26: Limite de cadastro | D26: Limite de cadastro | F26: Limite de cadastro | J26: Limite de cadastro
H56: Limite de cadastro

Sheet Base Acidentes
B6: Data | C6: Nº de Registro do funcionário | D6: Nome do Funcionário | E6: Setor | F6: Função | G6: Sexo | H6: Turno | I6: Tipo de acidente | J6: Agente de lesão | K6: Caracterização do acidente | L6: Parte do corpo atingida | M6: Dias de afastamento | N6: Valor gerado | O6: Mês | P6: Ano
B7: 44927 | C7: 1015 | D7: Nome do funcionário 1 | E7: Operacional | F7: Função | G7: Masculino | H7: Tarde | I7: Acidente Típico | J7: Acidente de carro | K7: Incapacitante | L7: Face | M7: 20 | N7: 500 | O7: =IF(TbBaseAcidentes[[#This Row],[Data]]="","",PROPER(TEXT(TbBaseAcidentes[[#This Row],[Data]],"mmm"))) -> Jan | P7: =IF(TbBaseAcidentes[[#This Row],[Data]]="","",YEAR(TbBaseAcidentes[[#This Row],[Data]])) -> 2023
B8: 44958 | C8: 2015 | D8: Nome do funcionário 2 | E8: Adminstrativo | F8: Função | G8: Feminino | H8: Noite | I8: Acidente de trajeto | J8: Acidente de moto | K8: Não incapacitante | L8: Dedos Pé | M8: 5 | N8: 20 | O8: =IF(TbBaseAcidentes[[#This Row],[Data]]="","",PROPER(TEXT(TbBaseAcidentes[[#This Row],[Data]],"mmm"))) -> Fev | P8: =IF(TbBaseAcidentes[[#This Row],[Data]]="","",YEAR(TbBaseAcidentes[[#This Row],[Data]])) -> 2023
B9: 44986 | C9: 2023 | D9: Nome do funcionário 3 | E9: Financeiro | F9: Função | G9: Masculino | H9: Manhã | I9: Acidente Típico | J9: Choque | K9: Fatal | L9: Orgãos internos | M9: 20 | N9: 300 | O9: =IF(TbBaseAcidentes[[#This Row],[Data]]="","",PROPER(TEXT(TbBaseAcidentes[[#This Row],[Data]],"mmm"))) -> Mar | P9: =IF(TbBaseAcidentes[[#This Row],[Data]]="","",YEAR(TbBaseAcidentes[[#This Row],[Data]])) -> 2023
B10: 45108 | C10: 1050 | D10: Nome do funcionário 4 | E10: Comercial | F10: Função | G10: Masculino | H10: Noite | I10: Doença Ocupacional | J10: Choque | K10: Com danos materiais | L10: Pé | M10: 2 | N10: 100 | O10: =IF(TbBaseAcidentes[[#This Row],[Data]]="","",PROPER(TEXT(TbBaseAcidentes[[#This Row],[Data]],"mmm"))) -> Jul | P10: =IF(TbBaseAcidentes[[#This Row],[Data]]="","",YEAR(TbBaseAcidentes[[#This Row],[Data]])) -> 2023
B11: 45048 | C11: 1030 | D11: Nome do funcionário 5 | E11: Caldeiraria | F11: Função | G11: Masculino | H11: Noite | I11: Acidente Típico | J11: Manipulação de ferramentas | K11: Sem danos materiais | L11: Perna | M11: 30 | N11: 50 | O11: =IF(TbBaseAcidentes[[#This Row],[Data]]="","",PROPER(TEXT(TbBaseAcidentes[[#This Row],[Data]],"mmm"))) -> Mai | P11: =IF(TbBaseAcidentes[[#This Row],[Data]]="","",YEAR(TbBaseAcidentes[[#This Row],[Data]])) -> 2023
B12: 45017 | C12: 1066 | D12: Nome do funcionário 6 | E12: Usinagem | F12: Função | G12: Masculino | H12: Noite | I12: Acidente Típico | J12: Queda de telhado | K12: Com danos materiais | L12: Abdômen | M12: 20 | N12: 30 | O12: =IF(TbBaseAcidentes[[#This Row],[Data]]="","",PROPER(TEXT(TbBaseAcidentes[[#This Row],[Data]],"mmm"))) -> Abr | P12: =IF(TbBaseAcidentes[[#This Row],[Data]]="","",YEAR(TbBaseAcidentes[[#This Row],[Data]])) -> 2023
B13: 45078 | C13: 1050 | D13: Nome do funcionário 7 | E13: Caldeiraria | F13: Função | G13: Masculino | H13: Noite | I13: Doença Ocupacional | J13: Queda de escada | K13: Com danos materiais | L13: Ombro | M13: 3 | N13: 65 | O13: =IF(TbBaseAcidentes[[#This Row],[Data]]="","",PROPER(TEXT(TbBaseAcidentes[[#This Row],[Data]],"mmm"))) -> Jun | P13: =IF(TbBaseAcidentes[[#This Row],[Data]]="","",YEAR(TbBaseAcidentes[[#This Row],[Data]])) -> 2023
B14: 45139 | C14: 1022 | D14: Nome do funcionário 8 | E14: Caldeiraria | F14: Função | G14: Feminino | H14: Noite | I14: Acidente Típico | J14: Queda de telhado | K14: Fatal | L14: Braço | M14: 3 | N14: 80 | O14: =IF(TbBaseAcidentes[[#This Row],[Data]]="","",PROPER(TEXT(TbBaseAcidentes[[#This Row],[Data]],"mmm"))) -> Ago | P14: =IF(TbBaseAcidentes[[#This Row],[Data]]="","",YEAR(TbBaseAcidentes[[#This Row],[Data]])) -> 2023
B15: 45170 | C15: 509 | D15: Nome do funcionário 9 | E15: Pintura | F15: Função | G15: Feminino | H15: Tarde | I15: Acidente de trajeto | J15: Acidente de moto | K15: Com restrição | L15: Joelho | M15: 5 | N15: 30 | O15: =IF(TbBaseAcidentes[[#This Row],[Data]]="","",PROPER(TEXT(TbBaseAcidentes[[#This Row],[Data]],"mmm"))) -> Set | P15: =IF(TbBaseAcidentes[[#This Row],[Data]]="","",YEAR(TbBaseAcidentes[[#This Row],[Data]])) -> 2023
B16: 45200 | C16: 1000 | D16: Nome do funcionário 10 | E16: Pintura | F16: Função | G16: Feminino | H16: Tarde | I16: Doença Ocupacional | J16: Acidente de moto | K16: Sem restrição | L16: Joelho | M16: 5 | N16: 20 | O16: =IF(TbBaseAcidentes[[#This Row],[Data]]="","",PROPER(TEXT(TbBaseAcidentes[[#This Row],[Data]],"mmm"))) -> Out | P16: =IF(TbBaseAcidentes[[#This Row],[Data]]="","",YEAR(TbBaseAcidentes[[#This Row],[Data]])) -> 2023
B17: 45017 | C17: 1002 | D17: Nome do funcionário 11 | E17: Pintura | F17: Função | G17: Masculino | H17: Manhã | I17: Doença Ocupacional | J17: Acidente de carro | K17: Com danos materiais | L17: Joelho | M17: 6 | N17: 50 | O17: =IF(TbBaseAcidentes[[#This Row],[Data]]="","",PROPER(TEXT(TbBaseAcidentes[[#This Row],[Data]],"mmm"))) -> Abr | P17: =IF(TbBaseAcidentes[[#This Row],[Data]]="","",YEAR(TbBaseAcidentes[[#This Row],[Data]])) -> 2023
B18: 44986 | C18: 1500 | D18: Nome do funcionário 12 | E18: Pintura | F18: Função | G18: Masculino | H18: Manhã | I18: Doença Ocupacional | J18: Choque | K18: Fatal | L18: Cotovelo | M18: 1 | N18: 40 | O18: =IF(TbBaseAcidentes[[#This Row],[Data]]="","",PROPER(TEXT(TbBaseAcidentes[[#This Row],[Data]],"mmm"))) -> Mar | P18: =IF(TbBaseAcidentes[[#This Row],[Data]]="","",YEAR(TbBaseAcidentes[[#This Row],[Data]])) -> 2023
B19: 44958 | C19: 850 | D19: Nome do funcionário 13 | E19: Pintura | F19: Função | G19: Feminino | H19: Noite | I19: Acidente de trajeto | J19: Acidente de carro | K19: Sem danos materiais | L19: Braço | M19: 2 | N19: 45 | O19: =IF(TbBaseAcidentes[[#This Row],[Data]]="","",PROPER(TEXT(TbBaseAcidentes[[#This Row],[Data]],"mmm"))) -> Fev | P19: =IF(TbBaseAcidentes[[#This Row],[Data]]="","",YEAR(TbBaseAcidentes[[#This Row],[Data]])) -> 2023
B20: 45047 | C20: 1200 | D20: Nome do funcionário 14 | E20: Montagem | F20: Função | G20: Masculino | H20: Noite | I20: Doença Ocupacional | J20: queda de telhado | K20: Sem danos materiais | L20: Crânio | M20: 20 | N20: 80 | O20: =IF(TbBaseAcidentes[[#This Row],[Data]]="","",PROPER(TEXT(TbBaseAcidentes[[#This Row],[Data]],"mmm"))) -> Mai | P20: =IF(TbBaseAcidentes[[#This Row],[Data]]="","",YEAR(TbBaseAcidentes[[#This Row],[Data]])) -> 2023
B21: 45078 | C21: 1265 | D21: Nome do funcionário 15 | E21: Montagem | F21: Função | G21: Masculino | H21: Manhã | I21: Acidente Típico | J21: Choque | K21: Com danos materiais | L21: Pescoço | M21: 3 | N21: 90 | O21: =IF(TbBaseAcidentes[[#This Row],[Data]]="","",PROPER(TEXT(TbBaseAcidentes[[#This Row],[Data]],"mmm"))) -> Jun | P21: =IF(TbBaseAcidentes[[#This Row],[Data]]="","",YEAR(TbBaseAcidentes[[#This Row],[Data]])) -> 2023
B22: 45231 | C22: 1250 | D22: Nome do funcionário 16 | E22: Montagem | F22: Função | G22: Masculino | H22: Manhã | I22: Acidente de trajeto | J22: Choque | K22: Com restrição | L22: Crânio | M22: 5 | N22: 100 | O22: =IF(TbBaseAcidentes[[#This Row],[Data]]="","",PROPER(TEXT(TbBaseAcidentes[[#This Row],[Data]],"mmm"))) -> Nov | P22: =IF(TbBaseAcidentes[[#This Row],[Data]]="","",YEAR(TbBaseAcidentes[[#This Row],[Data]])) -> 2023
B23: 45261 | C23: 1600 | D23: Nome do funcionário 17 | E23: Montagem | F23: Função | G23: Masculino | H23: Noite | I23: Acidente de trajeto | J23: acidente de carro | K23: Incapacitante | L23: Braço | M23: 5 | N23: 30 | O23: =IF(TbBaseAcidentes[[#This Row],[Data]]="","",PROPER(TEXT(TbBaseAcidentes[[#This Row],[Data]],"mmm"))) -> Dez | P23: =IF(TbBaseAcidentes[[#This Row],[Data]]="","",YEAR(TbBaseAcidentes[[#This Row],[Data]])) -> 2023

Sheet Base DDS
B6: Data | C6: Tema do DDS | D6: Método utilizado | E6: Qtd total de Colaboradores | F6: Qtd. de participantes | G6: % de Participação | H6: Comentários | I6: Mês | J6: Ano
B7: 44927 | C7: Tema | D7: Book DDs | E7: 30 | F7: 30 | G7: =IF(OR(TbBaseDDS[[#This Row],[Qtd total de Colaboradores]]="",TbBaseDDS[[#This Row],[Qtd. de participantes]]=""),"",TbBaseDDS[[#This Row],[Qtd. de participantes]]/TbBaseDDS[[#This Row],[Qtd total de Colaboradores]]) -> 1 | I7: =IF(TbBaseDDS[[#This Row],[Data]]="","",PROPER(TEXT(TbBaseDDS[[#This Row],[Data]],"mmm"))) -> Jan | J7: =IF(TbBaseDDS[[#This Row],[Data]]="","",YEAR(TbBaseDDS[[#This Row],[Data]])) -> 2023
B8: 44958 | C8: Tema | D8: Vídeo | E8: 20 | F8: 20 | G8: =IF(OR(TbBaseDDS[[#This Row],[Qtd total de Colaboradores]]="",TbBaseDDS[[#This Row],[Qtd. de participantes]]=""),"",TbBaseDDS[[#This Row],[Qtd. de participantes]]/TbBaseDDS[[#This Row],[Qtd total de Colaboradores]]) -> 1 | I8: =IF(TbBaseDDS[[#This Row],[Data]]="","",PROPER(TEXT(TbBaseDDS[[#This Row],[Data]],"mmm"))) -> Fev | J8: =IF(TbBaseDDS[[#This Row],[Data]]="","",YEAR(TbBaseDDS[[#This Row],[Data]])) -> 2023
B9: 44986 | C9: Tema | D9: Palestra | E9: 20 | F9: 18 | G9: =IF(OR(TbBaseDDS[[#This Row],[Qtd total de Colaboradores]]="",TbBaseDDS[[#This Row],[Qtd. de participantes]]=""),"",TbBaseDDS[[#This Row],[Qtd. de participantes]]/TbBaseDDS[[#This Row],[Qtd total de Colaboradores]]) -> 0.9 | I9: =IF(TbBaseDDS[[#This Row],[Data]]="","",PROPER(TEXT(TbBaseDDS[[#This Row],[Data]],"mmm"))) -> Mar | J9: =IF(TbBaseDDS[[#This Row],[Data]]="","",YEAR(TbBaseDDS[[#This Row],[Data]])) -> 2023
B10: 45017 | C10: Tema | D10: Power Point | E10: 30 | F10: 25 | G10: =IF(OR(TbBaseDDS[[#This Row],[Qtd total de Colaboradores]]="",TbBaseDDS[[#This Row],[Qtd. de participantes]]=""),"",TbBaseDDS[[#This Row],[Qtd. de participantes]]/TbBaseDDS[[#This Row],[Qtd total de Colaboradores]]) -> 0.8333333333 | I10: =IF(TbBaseDDS[[#This Row],[Data]]="","",PROPER(TEXT(TbBaseDDS[[#This Row],[Data]],"mmm"))) -> Abr | J10: =IF(TbBaseDDS[[#This Row],[Data]]="","",YEAR(TbBaseDDS[[#This Row],[Data]])) -> 2023
B11: 44958 | C11: Tema | D11: Vídeo | E11: 30 | F11: 30 | G11: =IF(OR(TbBaseDDS[[#This Row],[Qtd total de Colaboradores]]="",TbBaseDDS[[#This Row],[Qtd. de participantes]]=""),"",TbBaseDDS[[#This Row],[Qtd. de participantes]]/TbBaseDDS[[#This Row],[Qtd total de Colaboradores]]) -> 1 | I11: =IF(TbBaseDDS[[#This Row],[Data]]="","",PROPER(TEXT(TbBaseDDS[[#This Row],[Data]],"mmm"))) -> Fev | J11: =IF(TbBaseDDS[[#This Row],[Data]]="","",YEAR(TbBaseDDS[[#This Row],[Data]])) -> 2023
B12: 44928 | C12: Tema | D12: Vídeo | E12: 50 | F12: 40 | G12: =IF(OR(TbBaseDDS[[#This Row],[Qtd total de Colaboradores]]="",TbBaseDDS[[#This Row],[Qtd. de participantes]]=""),"",TbBaseDDS[[#This Row],[Qtd. de participantes]]/TbBaseDDS[[#This Row],[Qtd total de Colaboradores]]) -> 0.8 | I12: =IF(TbBaseDDS[[#This Row],[Data]]="","",PROPER(TEXT(TbBaseDDS[[#This Row],[Data]],"mmm"))) -> Jan | J12: =IF(TbBaseDDS[[#This Row],[Data]]="","",YEAR(TbBaseDDS[[#This Row],[Data]])) -> 2023
B13: 45108 | C13: Tema | D13: Vídeo | E13: 30 | F13: 30 | G13: =IF(OR(TbBaseDDS[[#This Row],[Qtd total de Colaboradores]]="",TbBaseDDS[[#This Row],[Qtd. de participantes]]=""),"",TbBaseDDS[[#This Row],[Qtd. de participantes]]/TbBaseDDS[[#This Row],[Qtd total de Colaboradores]]) -> 1 | I13: =IF(TbBaseDDS[[#This Row],[Data]]="","",PROPER(TEXT(TbBaseDDS[[#This Row],[Data]],"mmm"))) -> Jul | J13: =IF(TbBaseDDS[[#This Row],[Data]]="","",YEAR(TbBaseDDS[[#This Row],[Data]])) -> 2023
B14: 45078 | C14: Tema | D14: Vídeo | E14: 20 | F14: 18 | G14: =IF(OR(TbBaseDDS[[#This Row],[Qtd total de Colaboradores]]="",TbBaseDDS[[#This Row],[Qtd. de participantes]]=""),"",TbBaseDDS[[#This Row],[Qtd. de participantes]]/TbBaseDDS[[#This Row],[Qtd total de Colaboradores]]) -> 0.9 | I14: =IF(TbBaseDDS[[#This Row],[Data]]="","",PROPER(TEXT(TbBaseDDS[[#This Row],[Data]],"mmm"))) -> Jun | J14: =IF(TbBaseDDS[[#This Row],[Data]]="","",YEAR(TbBaseDDS[[#This Row],[Data]])) -> 2023
B15: 45047 | C15: Tema | D15: Vídeo | E15: 30 | F15: 30 | G15: =IF(OR(TbBaseDDS[[#This Row],[Qtd total de Colaboradores]]="",TbBaseDDS[[#This Row],[Qtd. de participantes]]=""),"",TbBaseDDS[[#This Row],[Qtd. de participantes]]/TbBaseDDS[[#This Row],[Qtd total de Colaboradores]]) -> 1 | I15: =IF(TbBaseDDS[[#This Row],[Data]]="","",PROPER(TEXT(TbBaseDDS[[#This Row],[Data]],"mmm"))) -> Mai | J15: =IF(TbBaseDDS[[#This Row],[Data]]="","",YEAR(TbBaseDDS[[#This Row],[Data]])) -> 2023
B16: 45139 | C16: Tema | D16: Book DDs | E16: 60 | F16: 50 | G16: =IF(OR(TbBaseDDS[[#This Row],[Qtd total de Colaboradores]]="",TbBaseDDS[[#This Row],[Qtd. de participantes]]=""),"",TbBaseDDS[[#This Row],[Qtd. de participantes]]/TbBaseDDS[[#This Row],[Qtd total de Colaboradores]]) -> 0.8333333333 | I16: =IF(TbBaseDDS[[#This Row],[Data]]="","",PROPER(TEXT(TbBaseDDS[[#This Row],[Data]],"mmm"))) -> Ago | J16: =IF(TbBaseDDS[[#This Row],[Data]]="","",YEAR(TbBaseDDS[[#This Row],[Data]])) -> 2023
B17: 45170 | C17: Tema | D17: Book DDs | E17: 50 | F17: 35 | G17: =IF(OR(TbBaseDDS[[#This Row],[Qtd total de Colaboradores]]="",TbBaseDDS[[#This Row],[Qtd. de participantes]]=""),"",TbBaseDDS[[#This Row],[Qtd. de participantes]]/TbBaseDDS[[#This Row],[Qtd total de Colaboradores]]) -> 0.7 | I17: =IF(TbBaseDDS[[#This Row],[Data]]="","",PROPER(TEXT(TbBaseDDS[[#This Row],[Data]],"mmm"))) -> Set | J17: =IF(TbBaseDDS[[#This Row],[Data]]="","",YEAR(TbBaseDDS[[#This Row],[Data]])) -> 2023
B18: 45200 | C18: Tema | D18: Book DDs | E18: 20 | F18: 20 | G18: =IF(OR(TbBaseDDS[[#This Row],[Qtd total de Colaboradores]]="",TbBaseDDS[[#This Row],[Qtd. de participantes]]=""),"",TbBaseDDS[[#This Row],[Qtd. de participantes]]/TbBaseDDS[[#This Row],[Qtd total de Colaboradores]]) -> 1 | I18: =IF(TbBaseDDS[[#This Row],[Data]]="","",PROPER(TEXT(TbBaseDDS[[#This Row],[Data]],"mmm"))) -> Out | J18: =IF(TbBaseDDS[[#This Row],[Data]]="","",YEAR(TbBaseDDS[[#This Row],[Data]])) -> 2023
B19: 45231 | C19: Tema | D19: Book DDs | E19: 30 | F19: 20 | G19: =IF(OR(TbBaseDDS[[#This Row],[Qtd total de Colaboradores]]="",TbBaseDDS[[#This Row],[Qtd. de participantes]]=""),"",TbBaseDDS[[#This Row],[Qtd. de participantes]]/TbBaseDDS[[#This Row],[Qtd total de Colaboradores]]) -> 0.6666666667 | I19: =IF(TbBaseDDS[[#This Row],[Data]]="","",PROPER(TEXT(TbBaseDDS[[#This Row],[Data]],"mmm"))) -> Nov | J19: =IF(TbBaseDDS[[#This Row],[Data]]="","",YEAR(TbBaseDDS[[#This Row],[Data]])) -> 2023
B20: 45261 | C20: Tema | D20: Book DDs | E20: 20 | F20: 15 | G20: =IF(OR(TbBaseDDS[[#This Row],[Qtd total de Colaboradores]]="",TbBaseDDS[[#This Row],[Qtd. de participantes]]=""),"",TbBaseDDS[[#This Row],[Qtd. de participantes]]/TbBaseDDS[[#This Row],[Qtd total de Colaboradores]]) -> 0.75 | I20: =IF(TbBaseDDS[[#This Row],[Data]]="","",PROPER(TEXT(TbBaseDDS[[#This Row],[Data]],"mmm"))) -> Dez | J20: =IF(TbBaseDDS[[#This Row],[Data]]="","",YEAR(TbBaseDDS[[#This Row],[Data]])) -> 2023
B21: 45231 | C21: Tema | D21: Power Point | E21: 20 | F21: 15 | G21: =IF(OR(TbBaseDDS[[#This Row],[Qtd total de Colaboradores]]="",TbBaseDDS[[#This Row],[Qtd. de participantes]]=""),"",TbBaseDDS[[#This Row],[Qtd. de participantes]]/TbBaseDDS[[#This Row],[Qtd total de Colaboradores]]) -> 0.75 | I21: =IF(TbBaseDDS[[#This Row],[Data]]="","",PROPER(TEXT(TbBaseDDS[[#This Row],[Data]],"mmm"))) -> Nov | J21: =IF(TbBaseDDS[[#This Row],[Data]]="","",YEAR(TbBaseDDS[[#This Row],[Data]])) -> 2023
B22: 44562 | C22: Tema | D22: Power Point | E22: 30 | F22: 30 | G22: =IF(OR(TbBaseDDS[[#This Row],[Qtd total de Colaboradores]]="",TbBaseDDS[[#This Row],[Qtd. de participantes]]=""),"",TbBaseDDS[[#This Row],[Qtd. de participantes]]/TbBaseDDS[[#This Row],[Qtd total de Colaboradores]]) -> 1 | I22: =IF(TbBaseDDS[[#This Row],[Data]]="","",PROPER(TEXT(TbBaseDDS[[#This Row],[Data]],"mmm"))) -> Jan | J22: =IF(TbBaseDDS[[#This Row],[Data]]="","",YEAR(TbBaseDDS[[#This Row],[Data]])) -> 2022
B23: 44927 | C23: Tema | D23: Palestra | E23: 50 | F23: 47 | G23: =IF(OR(TbBaseDDS[[#This Row],[Qtd total de Colaboradores]]="",TbBaseDDS[[#This Row],[Qtd. de participantes]]=""),"",TbBaseDDS[[#This Row],[Qtd. de participantes]]/TbBaseDDS[[#This Row],[Qtd total de Colaboradores]]) -> 0.94 | I23: =IF(TbBaseDDS[[#This Row],[Data]]="","",PROPER(TEXT(TbBaseDDS[[#This Row],[Data]],"mmm"))) -> Jan | J23: =IF(TbBaseDDS[[#This Row],[Data]]="","",YEAR(TbBaseDDS[[#This Row],[Data]])) -> 2023
B24: 44958 | C24: Tema | D24: Palestra | E24: 30 | F24: 30 | G24: =IF(OR(TbBaseDDS[[#This Row],[Qtd total de Colaboradores]]="",TbBaseDDS[[#This Row],[Qtd. de participantes]]=""),"",TbBaseDDS[[#This Row],[Qtd. de participantes]]/TbBaseDDS[[#This Row],[Qtd total de Colaboradores]]) -> 1 | I24: =IF(TbBaseDDS[[#This Row],[Data]]="","",PROPER(TEXT(TbBaseDDS[[#This Row],[Data]],"mmm"))) -> Fev | J24: =IF(TbBaseDDS[[#This Row],[Data]]="","",YEAR(TbBaseDDS[[#This Row],[Data]])) -> 2023
B25: 44986 | C25: Tema | D25: Palestra | E25: 20 | F25: 20 | G25: =IF(OR(TbBaseDDS[[#This Row],[Qtd total de Colaboradores]]="",TbBaseDDS[[#This Row],[Qtd. de participantes]]=""),"",TbBaseDDS[[#This Row],[Qtd. de participantes]]/TbBaseDDS[[#This Row],[Qtd total de Colaboradores]]) -> 1 | I25: =IF(TbBaseDDS[[#This Row],[Data]]="","",PROPER(TEXT(TbBaseDDS[[#This Row],[Data]],"mmm"))) -> Mar | J25: =IF(TbBaseDDS[[#This Row],[Data]]="","",YEAR(TbBaseDDS[[#This Row],[Data]])) -> 2023
B26: 44958 | C26: Tema | D26: Palestra | E26: 20 | F26: 18 | G26: =IF(OR(TbBaseDDS[[#This Row],[Qtd total de Colaboradores]]="",TbBaseDDS[[#This Row],[Qtd. de participantes]]=""),"",TbBaseDDS[[#This Row],[Qtd. de participantes]]/TbBaseDDS[[#This Row],[Qtd total de Colaboradores]]) -> 0.9 | I26: =IF(TbBaseDDS[[#This Row],[Data]]="","",PROPER(TEXT(TbBaseDDS[[#This Row],[Data]],"mmm"))) -> Fev | J26: =IF(TbBaseDDS[[#This Row],[Data]]="","",YEAR(TbBaseDDS[[#This Row],[Data]])) -> 2023
B27: 45047 | C27: Tema | D27: Power Point | E27: 30 | F27: 30 | G27: =IF(OR(TbBaseDDS[[#This Row],[Qtd total de Colaboradores]]="",TbBaseDDS[[#This Row],[Qtd. de participantes]]=""),"",TbBaseDDS[[#This Row],[Qtd. de participantes]]/TbBaseDDS[[#This Row],[Qtd total de Colaboradores]]) -> 1 | I27: =IF(TbBaseDDS[[#This Row],[Data]]="","",PROPER(TEXT(TbBaseDDS[[#This Row],[Data]],"mmm"))) -> Mai | J27: =IF(TbBaseDDS[[#This Row],[Data]]="","",YEAR(TbBaseDDS[[#This Row],[Data]])) -> 2023
B28: 45170 | C28: Tema | D28: Vídeo | E28: 30 | F28: 20 | G28: =IF(OR(TbBaseDDS[[#This Row],[Qtd total de Colaboradores]]="",TbBaseDDS[[#This Row],[Qtd. de participantes]]=""),"",TbBaseDDS[[#This Row],[Qtd. de participantes]]/TbBaseDDS[[#This Row],[Qtd total de Colaboradores]]) -> 0.6666666667 | I28: =IF(TbBaseDDS[[#This Row],[Data]]="","",PROPER(TEXT(TbBaseDDS[[#This Row],[Data]],"mmm"))) -> Set | J28: =IF(TbBaseDDS[[#This Row],[Data]]="","",YEAR(TbBaseDDS[[#This Row],[Data]])) -> 2023
B29: 45261 | C29: Tema | D29: Power Point | E29: 40 | F29: 28 | G29: =IF(OR(TbBaseDDS[[#This Row],[Qtd total de Colaboradores]]="",TbBaseDDS[[#This Row],[Qtd. de participantes]]=""),"",TbBaseDDS[[#This Row],[Qtd. de participantes]]/TbBaseDDS[[#This Row],[Qtd total de Colaboradores]]) -> 0.7 | I29: =IF(TbBaseDDS[[#This Row],[Data]]="","",PROPER(TEXT(TbBaseDDS[[#This Row],[Data]],"mmm"))) -> Dez | J29: =IF(TbBaseDDS[[#This Row],[Data]]="","",YEAR(TbBaseDDS[[#This Row],[Data]])) -> 2023
B30: 45139 | C30: Tema | D30: Power Point | E30: 50 | F30: 30 | G30: =IF(OR(TbBaseDDS[[#This Row],[Qtd total de Colaboradores]]="",TbBaseDDS[[#This Row],[Qtd. de participantes]]=""),"",TbBaseDDS[[#This Row],[Qtd. de participantes]]/TbBaseDDS[[#This Row],[Qtd total de Colaboradores]]) -> 0.6 | I30: =IF(TbBaseDDS[[#This Row],[Data]]="","",PROPER(TEXT(TbBaseDDS[[#This Row],[Data]],"mmm"))) -> Ago | J30: =IF(TbBaseDDS[[#This Row],[Data]]="","",YEAR(TbBaseDDS[[#This Row],[Data]])) -> 2023
B31: 45047 | C31: Tema | D31: Palestra | E31: 60 | F31: 45 | G31: =IF(OR(TbBaseDDS[[#This Row],[Qtd total de Colaboradores]]="",TbBaseDDS[[#This Row],[Qtd. de participantes]]=""),"",TbBaseDDS[[#This Row],[Qtd. de participantes]]/TbBaseDDS[[#This Row],[Qtd total de Colaboradores]]) -> 0.75 | I31: =IF(TbBaseDDS[[#This Row],[Data]]="","",PROPER(TEXT(TbBaseDDS[[#This Row],[Data]],"mmm"))) -> Mai | J31: =IF(TbBaseDDS[[#This Row],[Data]]="","",YEAR(TbBaseDDS[[#This Row],[Data]])) -> 2023
B32: 45261 | C32: Tema | D32: Vídeo | E32: 30 | F32: 30 | G32: =IF(OR(TbBaseDDS[[#This Row],[Qtd total de Colaboradores]]="",TbBaseDDS[[#This Row],[Qtd. de participantes]]=""),"",TbBaseDDS[[#This Row],[Qtd. de participantes]]/TbBaseDDS[[#This Row],[Qtd total de Colaboradores]]) -> 1 | I32: =IF(TbBaseDDS[[#This Row],[Data]]="","",PROPER(TEXT(TbBaseDDS[[#This Row],[Data]],"mmm"))) -> Dez | J32: =IF(TbBaseDDS[[#This Row],[Data]]="","",YEAR(TbBaseDDS[[#This Row],[Data]])) -> 2023
B33: 44927 | C33: Tema | D33: Vídeo | E33: 20 | F33: 20 | G33: =IF(OR(TbBaseDDS[[#This Row],[Qtd total de Colaboradores]]="",TbBaseDDS[[#This Row],[Qtd. de participantes]]=""),"",TbBaseDDS[[#This Row],[Qtd. de participantes]]/TbBaseDDS[[#This Row],[Qtd total de Colaboradores]]) -> 1 | I33: =IF(TbBaseDDS[[#This Row],[Data]]="","",PROPER(TEXT(TbBaseDDS[[#This Row],[Data]],"mmm"))) -> Jan | J33: =IF(TbBaseDDS[[#This Row],[Data]]="","",YEAR(TbBaseDDS[[#This Row],[Data]])) -> 2023

Sheet Dash.Acidentes

Sheet Dash DDS

Sheet Instruções
B4: REGRAS PARA USO
B5: Muito obrigado por adquirir este produto. É uma grande satisfação tê-lo como cliente.
B6: Esta planilha foi planejada e desenvolvida de forma que fosse uma forma prática e fácil para conseguir controlar seu projeto.
B7: Qualquer dúvida, por favor entrar em contato com : contato@almeidaplanilhas.com.br
B9: Planilha 100% editável, para que você possa deixar do jeito que deseja.
B11: Planilhas protegidas por Direitos Autorais,
B12: Dessa forma, ao realizar a compra em nossa loja, nossas planilhas NÃO podem ser vendidas, revendidas, distribuídas, publicadas em uma galeria online, hospedadas em um site, ou colocadas em qualquer servidor de uma forma que a torne disponível para o público em geral sem uma autorização por escrito.
B14: DICAS INICIAIS
A15: Ø | B15: Geralmente ao abrir a planilha nas primeiras vezes, o Excel apresenta essa mensagem como forma de segurança, basta clicar em "Habilitar Edição", para que a planilha funcione corretamente.
A18: Ø | B18: Os dashboards estão bloqueados para que o usuário não clique em algum objeto e arraste ele. Caso você queira desbloquear. Basta seguir as seguintes etapas.
B19: Obs.: Essas etapas só são válidas após a compra da planilha. Na versão DEMONSTRATIVA, a planilha contém senha.
B22: INSTRUÇÕES DE USO
A23: Ø | B23: Cadastro
B24: Cadastre os campos iniciais como inspetor e setores, agentes de lesões, caracterização de acidente e Partes do corpo afetado, e métodos utilizados nos DDS.
B25: OBS.: Recomendamos que não seja deletado ou modificado as partes do corpo, pois alguns ficam posicionado de forma fixa no dash. Apenas adicione as partes novas que desejar.
A27: Ø | B27: Base
B28: Lance e controle todos os Acidentes e diálogos Dários de Segurança realizados.
A30: Ø | B30: Dashboard
B31: Nessa área foi dividido entre 2 dashboards e será possível realizar as seguintes análises:
B33: Acidentes de Trabalho
B34: - Quantidade de Acidentes; - Turno dos funcionários; - Gênero dos funcionários acidentados; - Custo com os acidentes; - Tipos de Acidentes; - Partes do Corpo afetado; - Top 3 - Agentes de lesão; - Top 3 - Caracterização do acidentes; - Acidentes por setor; - Variação de acidentes durante o ano.
B36: Diálogo Diário de Segurança
B37: - DDS realizados; - Média de colaboradores previstos; - Média de participantes; - % de participação; - Métodos utilizados; - Média de colaboradores previstos x Participantes durante o ano; - DDS realizados durante o ano; - % de participação durante o ano.
A39: FAÇA UM ÓTIMO USO

Sheet Apoio (hidden)
B1: Acidentes de trabalho
B2: CAIXAS | J2: TIPOS DE ACIDENTES | Q2: TOP 3 - AGENTES DE LESÃO | V2: TOP 3 - CARACTERIZAÇÃO DO ACIDENTE | AA2: ACIDENTES POR SETOR | AG2: PARTES DO CORPO | AY2: ACIDENTES DURANTE O ANO | BE2: CAIXAS | BL2: MÉTODO UTILIZADO | BU2: Colaboradores x participantes e % de participação | CE2: DDS Realizado
B3: Turno | C3: Sexo | D3: Qtd | E3: Valor | F3: ACIDENTES | J3: Tipo de acidente | K3: Qtd | L3: Tipos de acidente | M3: Qtd | N3: % | O3: % rest. | Q3: Agente de lesão | R3: QTD | S3: Agente de lesão | T3: Qtd | V3: Caracterização do acidente | W3: qtd | X3: Caracterização do acidente | Y3: qtd | AA3: Setor | AB3: Qtd | AC3: 0 | AD3: Setor | AE3: Qtd | AG3: Parte do corpo atingida | AH3: qtd | AI3: Padrão | AJ3: Qtd | AK3: Partes do corpo | AL3: Qtd | AN3: ID | AO3: Outras partes | AP3: Qtd | AQ3: P.I | AR3: P.F | AS3: P.F2 | AT3: ID | AU3: Outras partes ordem | AV3: Outras partes | AW3: QTD | AY3: Mês | AZ3: QTD | BA3: Mês | BB3: Qtd | BE3: Método utilizado | BF3: Qtd DDS | BG3: total de Colaboradores | BH3: Qtd. de participantes | BI3: Qtd de DDS | BJ3: =SUM($BF$4:$BF$20) -> 27 | BL3: ID | BM3: Método utlizado | BN3: QTD | BO3: P.I | BP3: P.F | BQ3: 0 | BR3: Método utlizado | BS3: QTD | BU3: Mês | BV3: QTD de DDS | BW3: Qtd total de Colaboradores | BX3: Qtd. de participantes | BY3: ID | BZ3: Mês | CA3: Colaboradores | CB3: Participantes | CC3: % | CE3: Mês | CF3: Qtd
B4: Tarde | C4: Feminino | D4: 2 | E4: 50 | F4: Acidentes | G4: =SUM($G$6:$G$8) -> 17 | J4: Acidente de trajeto | K4: 5 | L4: Acidente típico | M4: =SUMIF($J$4:$J$10,L4,$K$4:$K$10) -> 6 | N4: =IF($M$7=0,0,M4/$M$7) -> 0.3529411765 | O4: =1-N4 -> 0.6470588235 | Q4: Choque | R4: 5 | S4: =IF(Q4="","",Q4) -> Choque | T4: =IF(R4="","",R4) -> 5 | V4: Com danos materiais | W4: 5 | X4: =IF(V4="","",V4) -> Com danos materiais | Y4: =IF(W4="","",W4) -> 5 | AA4: Pintura | AB4: 5 | AC4: =(AC3*7)+1 -> 1 | AD4: =IFERROR(IF(INDEX($AA$4:$AB$55,$AC4,1)=0," ",INDEX($AA$4:$AB$55,$AC4,1))," ") -> Pintura | AE4: =IFERROR(IF(INDEX($AA$4:$AB$55,$AC4,2)=0,0,INDEX($AA$4:$AB$55,$AC4,2)),"") -> 5 | AG4: Face | AH4: 1 | AI4: Crânio | AJ4: =SUMIF($AG$4:$AG$70,AI4,$AH$4:$AH$70) -> 2 | AK4: =IF(AJ4=0,"",AI4) -> Crânio | AL4: =IF(AJ4=0,"",AJ4) -> 2 | AN4: 1 | AO4: =IFERROR(INDEX(Lista_PartesCorpo,AN4,1),"") -> Crânio | AP4: =IF(AO4="","",IF(ISERROR(MATCH(AO4,$AI$4:$AI$15,0)),SUMIF($AG$4:$AG$100,AO4,$AH$4:$AH$100),0)) -> 0 | AQ4: =IF(OR(AP4="",AP4=0),"",RANK(AP4,$AP$4:$AP$53,0)) ->  | AR4: =IFERROR(IF(COUNTIF($AQ$3:AQ3,AQ4)>0,AQ4+COUNTIF($AQ$3:AQ3,AQ4),AQ4),"") ->  | AS4: =IF(AR4="","",IF(AR4>10,"OK",AR4)) ->  | AT4: =IF(AU4="","",COUNTA(AT$3:$AT3)-COUNTBLANK(AT$3:$AT3)) -> 1 | AU4: =IFERROR(INDEX($AO$4:$AP$53,MATCH(AN4,$AS$4:$AS$53,0),1),"") -> Joelho | AV4: =IFERROR(INDEX($AU$4:$AU$14,MATCH(AN4,$AT$4:$AT$14,0),1),"") -> Joelho | AW4: =IF(AV4="","", IF(AV4<>"outros",SUMIF($AO$4:$AO$53,AV4,$AP$4:$AP$53),SUMIF($AS$4:$AS$53,"ok",$AP$4:$AP$53))) -> 3 | AY4: Jan | AZ4: 1 | BA4: Jan | BB4: =SUMIF($AY$4:$AY$20,BA4,$AZ$4:$AZ$20) -> 1 | BE4: Book DDs | BF4: 6 | BG4: 210 | BH4: 170 | BI4: Média de Colaboradores Previstos | BJ4: =IFERROR(ROUNDUP(SUM($BG$4:$BG$20)/$BJ$3,0),0) -> 33 | BL4: 1 | BM4: =IFERROR(INDEX(Lista_Metodo,Apoio!BL4,1),"") -> Book DDs | BN4: =IF(BM4="","",SUMIF($BE$4:$BE$20,BM4,$BF$4:$BF$20)) -> 6 | BO4: =IF(OR(BM4="",BN4=0),"",RANK(BN4,$BN$4:$BN$13,0)) -> 2 | BP4: =IFERROR(IF(COUNTIF($BO$3:BO3,BO4)>0,BO4+COUNTIF($BO$3:BO3,BO4),BO4),"") -> 2 | BQ4: =(BQ3*4)+1 -> 1 | BR4: =IFERROR(INDEX($BM$4:$BN$13,MATCH($BQ4,$BP$4:$BP$13,0),1)," ") -> Vídeo | BS4: =IF(BR4="","",SUMIF($BM$4:$BM$13,BR4,$BN$4:$BN$13)) -> 9 | BU4: Jan | BV4: 5 | BW4: 180 | BX4: 167 | BY4: 1 | BZ4: Jan | CA4: =IFERROR(ROUNDUP(SUMIF($BU$4:$BU$20,$BZ4,$BW$4:$BW$20)/SUMIF($BU$4:$BU$20,$BZ4,$BV$4:$BV$20),0),0) -> 36 | CB4: =IFERROR(ROUNDDOWN(SUMIF($BU$4:$BU$20,$BZ4,$BX$4:$BX$20)/SUMIF($BU$4:$BU$20,$BZ4,$BV$4:$BV$20),0),0) -> 33 | CC4: =IFERROR(IF(CA4=0,0,CB4/CA4),0) -> 0.9166666667 | CE4: Jan | CF4: =SUMIF($BU$4:$BU$20,$BZ4,$BV$4:$BV$20) -> 5
B5: Tarde | C5: Masculino | D5: 1 | E5: 500 | F5: TURNO | J5: Acidente Típico | K5: 6 | L5: Acidente de trajeto | M5: =SUMIF($J$4:$J$10,L5,$K$4:$K$10) -> 5 | N5: =IF($M$7=0,0,M5/$M$7) -> 0.2941176471 | O5: =1-N5 -> 0.7058823529 | Q5: Acidente de carro | R5: 4 | S5: =IF(Q5="","",Q5) -> Acidente de carro | T5: =IF(R5="","",R5) -> 4 | V5: Sem danos materiais | W5: 3 | X5: =IF(V5="","",V5) -> Sem danos materiais | Y5: =IF(W5="","",W5) -> 3 | AA5: Montagem | AB5: 4 | AC5: =AC4+1 -> 2 | AD5: =IFERROR(IF(INDEX($AA$4:$AB$55,$AC5,1)=0," ",INDEX($AA$4:$AB$55,$AC5,1))," ") -> Montagem | AE5: =IFERROR(IF(INDEX($AA$4:$AB$55,$AC5,2)=0,0,INDEX($AA$4:$AB$55,$AC5,2)),"") -> 4 | AG5: Joelho | AH5: 3 | AI5: Face | AJ5: 1 | AK5: =IF(AJ5=0,"",AI5) -> Face | AL5: =IF(AJ5=0,"",AJ5) -> 1 | AN5: 2 | AO5: Face | AP5: 0 | AQ5: =IF(OR(AP5="",AP5=0),"",RANK(AP5,$AP$4:$AP$53,0)) ->  | AR5: =IFERROR(IF(COUNTIF($AQ$3:AQ4,AQ5)>0,AQ5+COUNTIF($AQ$3:AQ4,AQ5),AQ5),"") ->  | AS5: =IF(AR5="","",IF(AR5>10,"OK",AR5)) ->  | AT5: =IF(AU5="","",COUNTA(AT$3:$AT4)-COUNTBLANK(AT$3:$AT4)) -> 2 | AU5: Cotovelo | AV5: =IFERROR(INDEX($AU$4:$AU$14,MATCH(AN5,$AT$4:$AT$14,0),1),"") -> Cotovelo | AW5: =IF(AV5="","", IF(AV5<>"outros",SUMIF($AO$4:$AO$53,AV5,$AP$4:$AP$53),SUMIF($AS$4:$AS$53,"ok",$AP$4:$AP$53))) -> 1 | AY5: Fev | AZ5: 2 | BA5: Fev | BB5: =SUMIF($AY$4:$AY$20,BA5,$AZ$4:$AZ$20) -> 2 | BE5: Palestra | BF5: 6 | BG5: 200 | BH5: 178 | BI5: Média de participantes | BJ5: =IFERROR(ROUNDDOWN(SUM($BH$4:$BH$20)/$BJ$3,0),0) -> 27 | BL5: 2 | BM5: =IFERROR(INDEX(Lista_Metodo,Apoio!BL5,1),"") -> Vídeo | BN5: =IF(BM5="","",SUMIF($BE$4:$BE$20,BM5,$BF$4:$BF$20)) -> 9 | BO5: =IF(OR(BM5="",BN5=0),"",RANK(BN5,$BN$4:$BN$13,0)) -> 1 | BP5: =IFERROR(IF(COUNTIF($BO$3:BO4,BO5)>0,BO5+COUNTIF($BO$3:BO4,BO5),BO5),"") -> 1 | BQ5: =BQ4+1 -> 2 | BR5: =IFERROR(INDEX($BM$4:$BN$13,MATCH($BQ5,$BP$4:$BP$13,0),1)," ") -> Book DDs | BS5: =IF(BR5="","",SUMIF($BM$4:$BM$13,BR5,$BN$4:$BN$13)) -> 6 | BU5: Fev | BV5: 4 | BW5: 100 | BX5: 98 | BY5: 2 | BZ5: Fev | CA5: =IFERROR(ROUNDUP(SUMIF($BU$4:$BU$20,$BZ5,$BW$4:$BW$20)/SUMIF($BU$4:$BU$20,$BZ5,$BV$4:$BV$20),0),0) -> 25 | CB5: =IFERROR(ROUNDDOWN(SUMIF($BU$4:$BU$20,$BZ5,$BX$4:$BX$20)/SUMIF($BU$4:$BU$20,$BZ5,$BV$4:$BV$20),0),0) -> 24 | CC5: =IFERROR(IF(CA5=0,0,CB5/CA5),0) -> 0.96 | CE5: Fev | CF5: =SUMIF($BU$4:$BU$20,$BZ5,$BV$4:$BV$20) -> 4
B6: Noite | C6: Feminino | D6: 3 | E6: 145 | F6: Manhã | G6: =SUMIF($B$3:$B$20,F6,$D$3:$D$20) -> 5 | J6: Doença Ocupacional | K6: 6 | L6: Doença Ocupacional | M6: 6 | N6: 0.3529411765 | O6: 0.6470588235 | Q6: Queda de telhado | R6: 3 | S6: Queda de telhado | T6: 3 | V6: Fatal | W6: 3 | X6: Fatal | Y6: 3 | AA6: Caldeiraria | AB6: 3 | AC6: =AC5+1 -> 3 | AD6: Caldeiraria | AE6: 3 | AG6: Orgãos internos | AH6: 1 | AI6: Olhos | AJ6: 0 | AN6: 3 | AO6: Olhos | AP6: 0 | AR6: =IFERROR(IF(COUNTIF($AQ$3:AQ5,AQ6)>0,AQ6+COUNTIF($AQ$3:AQ5,AQ6),AQ6),"") ->  | AT6: =IF(AU6="","",COUNTA(AT$3:$AT5)-COUNTBLANK(AT$3:$AT5)) -> 3 | AU6: Abdômen | AV6: Abdômen | AW6: 1 | AY6: Mar | AZ6: 2 | BA6: Mar | BB6: 2 | BE6: Power Point | BF6: 6 | BG6: 200 | BH6: 158 | BI6: % de Participação | BJ6: =IF(BJ4=0,0,BJ5/BJ4) -> 0.8181818182 | BL6: 3 | BM6: =IFERROR(INDEX(Lista_Metodo,Apoio!BL6,1),"") -> Palestra | BN6: 6 | BO6: 2 | BP6: =IFERROR(IF(COUNTIF($BO$3:BO5,BO6)>0,BO6+COUNTIF($BO$3:BO5,BO6),BO6),"") -> 3 | BQ6: =BQ5+1 -> 3 | BR6: Palestra | BS6: 6 | BU6: Mar | BV6: 2 | BW6: 40 | BX6: 38 | BY6: 3 | BZ6: Mar | CA6: 20 | CB6: 19 | CC6: 0.95 | CE6: Mar | CF6: 2
B7: Noite | C7: Masculino | D7: 6 | E7: 355 | F7: Tarde | G7: =SUMIF($B$3:$B$20,F7,$D$3:$D$20) -> 3 | L7: Total | M7: =SUM(M4:M6) -> 17 | Q7: Acidente de moto | R7: 3 | V7: Com restrição | W7: 2 | AA7: Adminstrativo | AB7: 1 | AC7: 4 | AD7: Adminstrativo | AE7: 1 | AG7: Crânio | AH7: 2 | AI7: Pescoço | AJ7: 1 | AK7: Pescoço | AL7: 1 | AN7: 4 | AO7: Pescoço | AP7: 0 | AR7: =IFERROR(IF(COUNTIF($AQ$3:AQ6,AQ7)>0,AQ7+COUNTIF($AQ$3:AQ6,AQ7),AQ7),"") ->  | AT7: =IF(AU7="","",COUNTA(AT$3:$AT6)-COUNTBLANK(AT$3:$AT6)) -> 4 | AU7: =IFERROR(INDEX($AO$4:$AP$53,MATCH(AN7,$AS$4:$AS$53,0),1),"") -> Orgãos internos | AV7: Orgãos internos | AW7: 1 | AY7: Mai | AZ7: 2 | BA7: Abr | BB7: 2 | BE7: Vídeo | BF7: 9 | BG7: 260 | BH7: 238 | BL7: 4 | BM7: =IFERROR(INDEX(Lista_Metodo,Apoio!BL7,1),"") -> Power Point | BN7: 6 | BO7: 2 | BP7: =IFERROR(IF(COUNTIF($BO$3:BO6,BO7)>0,BO7+COUNTIF($BO$3:BO6,BO7),BO7),"") -> 4 | BQ7: 4 | BR7: Power Point | BS7: 6 | BU7: Abr | BV7: 1 | BW7: 30 | BX7: 25 | BY7: 4 | BZ7: Abr | CA7: 30 | CB7: 25 | CC7: 0.8333333333 | CE7: Abr | CF7: 1
B8: Manhã | C8: Masculino | D8: 5 | E8: 580 | F8: Noite | G8: 9 | Q8: Queda de escada | R8: 1 | V8: Incapacitante | W8: 2 | AA8: Usinagem | AB8: 1 | AC8: 5 | AD8: Usinagem | AE8: 1 | AG8: Pescoço | AH8: 1 | AI8: Ombro | AJ8: 1 | AK8: Ombro | AL8: 1 | AN8: 5 | AO8: Ombro | AP8: 0 | AR8: =IFERROR(IF(COUNTIF($AQ$3:AQ7,AQ8)>0,AQ8+COUNTIF($AQ$3:AQ7,AQ8),AQ8),"") ->  | AT8: =IF(AU8="","",COUNTA(AT$3:$AT7)-COUNTBLANK(AT$3:$AT7)) ->  | AY8: Abr | AZ8: 2 | BA8: Mai | BB8: 2 | BL8: 5 | BM8: =IFERROR(INDEX(Lista_Metodo,Apoio!BL8,1),"") ->  | BP8: =IFERROR(IF(COUNTIF($BO$3:BO7,BO8)>0,BO8+COUNTIF($BO$3:BO7,BO8),BO8),"") ->  | BU8: Mai | BV8: 3 | BW8: 120 | BX8: 105 | BY8: 5 | BZ8: Mai | CA8: 40 | CB8: 35 | CC8: 0.875 | CE8: Mai | CF8: 3
F9: GÊNERO | Q9: Manipulação de ferramentas | R9: 1 | V9: Sem restrição | W9: 1 | AA9: Financeiro | AB9: 1 | AC9: =AC8+1 -> 6 | AD9: Financeiro | AE9: 1 | AG9: Braço | AH9: 3 | AI9: Braço | AJ9: 3 | AK9: Braço | AL9: 3 | AN9: 6 | AO9: Braço | AP9: 0 | AR9: =IFERROR(IF(COUNTIF($AQ$3:AQ8,AQ9)>0,AQ9+COUNTIF($AQ$3:AQ8,AQ9),AQ9),"") ->  | AT9: =IF(AU9="","",COUNTA(AT$3:$AT8)-COUNTBLANK(AT$3:$AT8)) ->  | AY9: Jun | AZ9: 2 | BA9: Jun | BB9: 2 | BL9: 6 | BM9: =IFERROR(INDEX(Lista_Metodo,Apoio!BL9,1),"") ->  | BP9: =IFERROR(IF(COUNTIF($BO$3:BO8,BO9)>0,BO9+COUNTIF($BO$3:BO8,BO9),BO9),"") ->  | BU9: Jun | BV9: 1 | BW9: 20 | BX9: 18 | BY9: 6 | BZ9: Jun | CA9: 20 | CB9: 18 | CC9: 0.9 | CE9: Jun | CF9: 1
F10: Feminino | G10: =SUMIF($C$3:$C$20,F10,$D$3:$D$20) -> 5 | H10: =IFERROR(G10/SUM($G$10:$G$11),0) -> 0.2941176471 | V10: Não incapacitante | W10: 1 | AA10: Operacional | AB10: 1 | AG10: Abdômen | AH10: 1 | AI10: Mão | AJ10: 0 | AN10: 7 | AO10: Cotovelo | AP10: 1 | AQ10: 2 | AR10: =IFERROR(IF(COUNTIF($AQ$3:AQ9,AQ10)>0,AQ10+COUNTIF($AQ$3:AQ9,AQ10),AQ10),"") -> 2 | AS10: 2 | AT10: =IF(AU10="","",COUNTA(AT$3:$AT9)-COUNTBLANK(AT$3:$AT9)) ->  | AY10: Ago | AZ10: 1 | BA10: Jul | BB10: 1 | BL10: 7 | BM10: =IFERROR(INDEX(Lista_Metodo,Apoio!BL10,1),"") ->  | BP10: =IFERROR(IF(COUNTIF($BO$3:BO9,BO10)>0,BO10+COUNTIF($BO$3:BO9,BO10),BO10),"") ->  | BU10: Ago | BV10: 2 | BW10: 110 | BX10: 80 | BY10: 7 | BZ10: Jul | CA10: 30 | CB10: 30 | CC10: 1 | CE10: Jul | CF10: 1
F11: Masculino | G11: =SUMIF($C$3:$C$20,F11,$D$3:$D$20) -> 12 | H11: =IFERROR(G11/SUM($G$10:$G$11),0) -> 0.7058823529 | AA11: Comercial | AB11: 1 | AG11: Ombro | AH11: 1 | AI11: Dedos mão | AJ11: 0 | AN11: 8 | AO11: Punho | AP11: 0 | AR11: =IFERROR(IF(COUNTIF($AQ$3:AQ10,AQ11)>0,AQ11+COUNTIF($AQ$3:AQ10,AQ11),AQ11),"") ->  | AT11: =IF(AU11="","",COUNTA(AT$3:$AT10)-COUNTBLANK(AT$3:$AT10)) ->  | AY11: Set | AZ11: 1 | BA11: Ago | BB11: 1 | BL11: 8 | BM11: =IFERROR(INDEX(Lista_Metodo,Apoio!BL11,1),"") ->  | BP11: =IFERROR(IF(COUNTIF($BO$3:BO10,BO11)>0,BO11+COUNTIF($BO$3:BO10,BO11),BO11),"") ->  | BU11: Set | BV11: 2 | BW11: 80 | BX11: 55 | BY11: 8 | BZ11: Ago | CA11: 55 | CB11: 40 | CC11: 0.7272727273 | CE11: Ago | CF11: 2
F12: VALOR | AG12: Cotovelo | AH12: 1 | AI12: Reg. Lombar | AJ12: 0 | AN12: 9 | AO12: Mão | AP12: 0 | AR12: =IFERROR(IF(COUNTIF($AQ$3:AQ11,AQ12)>0,AQ12+COUNTIF($AQ$3:AQ11,AQ12),AQ12),"") ->  | AT12: =IF(AU12="","",COUNTA(AT$3:$AT11)-COUNTBLANK(AT$3:$AT11)) ->  | AY12: Out | AZ12: 1 | BA12: Set | BB12: 1 | BL12: 9 | BM12: =IFERROR(INDEX(Lista_Metodo,Apoio!BL12,1),"") ->  | BP12: =IFERROR(IF(COUNTIF($BO$3:BO11,BO12)>0,BO12+COUNTIF($BO$3:BO11,BO12),BO12),"") ->  | BU12: Out | BV12: 1 | BW12: 20 | BX12: 20 | BY12: 9 | BZ12: Set | CA12: 40 | CB12: 27 | CC12: 0.675 | CE12: Set | CF12: 2
F13: Valor | G13: =SUM($E$4:$E$20) -> 1630 | AG13: Dedos Pé | AH13: 1 | AI13: Perna | AJ13: 1 | AK13: Perna | AL13: 1 | AN13: 10 | AO13: Dedos mão | AP13: 0 | AR13: =IFERROR(IF(COUNTIF($AQ$3:AQ12,AQ13)>0,AQ13+COUNTIF($AQ$3:AQ12,AQ13),AQ13),"") ->  | AT13: =IF(AU13="","",COUNTA(AT$3:$AT12)-COUNTBLANK(AT$3:$AT12)) ->  | AY13: Nov | AZ13: 1 | BA13: Out | BB13: 1 | BL13: 10 | BM13: =IFERROR(INDEX(Lista_Metodo,Apoio!BL13,1),"") ->  | BP13: =IFERROR(IF(COUNTIF($BO$3:BO12,BO13)>0,BO13+COUNTIF($BO$3:BO12,BO13),BO13),"") ->  | BU13: Nov | BV13: 2 | BW13: 50 | BX13: 35 | BY13: 10 | BZ13: Out | CA13: 20 | CB13: 20 | CC13: 1 | CE13: Out | CF13: 1
AG14: Pé | AH14: 1 | AI14: Pé | AJ14: 1 | AK14: Pé | AL14: 1 | AN14: 11 | AO14: Abdômen | AP14: 1 | AQ14: 2 | AR14: =IFERROR(IF(COUNTIF($AQ$3:AQ13,AQ14)>0,AQ14+COUNTIF($AQ$3:AQ13,AQ14),AQ14),"") -> 3 | AS14: 3 | AT14: =IF(AU14="","",COUNTA(AT$3:$AT13)-COUNTBLANK(AT$3:$AT13)) ->  | AU14: =IF(COUNTIF($AS$4:$AS$53,"Ok")>0,"Outros","") ->  | AY14: Dez | AZ14: 1 | BA14: Nov | BB14: 1 | BU14: Dez | BV14: 3 | BW14: 90 | BX14: 73 | BY14: 11 | BZ14: Nov | CA14: 25 | CB14: 17 | CC14: 0.68 | CE14: Nov | CF14: 2
AG15: Perna | AH15: 1 | AI15: Dedos pé | AJ15: 1 | AK15: Dedos pé | AL15: 1 | AN15: 12 | AO15: Reg. Lombar | AP15: 0 | AR15: =IFERROR(IF(COUNTIF($AQ$3:AQ14,AQ15)>0,AQ15+COUNTIF($AQ$3:AQ14,AQ15),AQ15),"") ->  | AY15: Jul | AZ15: 1 | BA15: Dez | BB15: 1 | BU15: Jul | BV15: 1 | BW15: 30 | BX15: 30 | BY15: 12 | BZ15: Dez | CA15: 30 | CB15: 24 | CC15: 0.8 | CE15: Dez | CF15: 3
AN16: 13 | AO16: Perna | AP16: 0 | AR16: =IFERROR(IF(COUNTIF($AQ$3:AQ15,AQ16)>0,AQ16+COUNTIF($AQ$3:AQ15,AQ16),AQ16),"") -> 
AN17: 14 | AO17: Pé | AP17: 0 | AR17: =IFERROR(IF(COUNTIF($AQ$3:AQ16,AQ17)>0,AQ17+COUNTIF($AQ$3:AQ16,AQ17),AQ17),"") -> 
AN18: 15 | AO18: Dedos Pé | AP18: 0 | AR18: =IFERROR(IF(COUNTIF($AQ$3:AQ17,AQ18)>0,AQ18+COUNTIF($AQ$3:AQ17,AQ18),AQ18),"") -> 
AN19: 16 | AO19: Orgãos internos | AP19: 1 | AQ19: 2 | AR19: =IFERROR(IF(COUNTIF($AQ$3:AQ18,AQ19)>0,AQ19+COUNTIF($AQ$3:AQ18,AQ19),AQ19),"") -> 4 | AS19: 4
AN20: 17 | AO20: Joelho | AP20: 3 | AQ20: 1 | AR20: =IFERROR(IF(COUNTIF($AQ$3:AQ19,AQ20)>0,AQ20+COUNTIF($AQ$3:AQ19,AQ20),AQ20),"") -> 1 | AS20: 1
AN21: 18 | AR21: =IFERROR(IF(COUNTIF($AQ$3:AQ20,AQ21)>0,AQ21+COUNTIF($AQ$3:AQ20,AQ21),AQ21),"") -> 
AN22: 19 | AR22: =IFERROR(IF(COUNTIF($AQ$3:AQ21,AQ22)>0,AQ22+COUNTIF($AQ$3:AQ21,AQ22),AQ22),"") -> 
AN23: 20 | AR23: =IFERROR(IF(COUNTIF($AQ$3:AQ22,AQ23)>0,AQ23+COUNTIF($AQ$3:AQ22,AQ23),AQ23),"") -> 
AN24: 21 | AR24: =IFERROR(IF(COUNTIF($AQ$3:AQ23,AQ24)>0,AQ24+COUNTIF($AQ$3:AQ23,AQ24),AQ24),"") -> 
AN25: 22 | AR25: =IFERROR(IF(COUNTIF($AQ$3:AQ24,AQ25)>0,AQ25+COUNTIF($AQ$3:AQ24,AQ25),AQ25),"") -> 
AN26: 23 | AR26: =IFERROR(IF(COUNTIF($AQ$3:AQ25,AQ26)>0,AQ26+COUNTIF($AQ$3:AQ25,AQ26),AQ26),"") -> 
AN27: 24 | AR27: =IFERROR(IF(COUNTIF($AQ$3:AQ26,AQ27)>0,AQ27+COUNTIF($AQ$3:AQ26,AQ27),AQ27),"") -> 
AN28: 25 | AR28: =IFERROR(IF(COUNTIF($AQ$3:AQ27,AQ28)>0,AQ28+COUNTIF($AQ$3:AQ27,AQ28),AQ28),"") -> 
AN29: 26 | AR29: =IFERROR(IF(COUNTIF($AQ$3:AQ28,AQ29)>0,AQ29+COUNTIF($AQ$3:AQ28,AQ29),AQ29),"") -> 
AN30: 27 | AR30: =IFERROR(IF(COUNTIF($AQ$3:AQ29,AQ30)>0,AQ30+COUNTIF($AQ$3:AQ29,AQ30),AQ30),"") -> 
AN31: 28 | AR31: =IFERROR(IF(COUNTIF($AQ$3:AQ30,AQ31)>0,AQ31+COUNTIF($AQ$3:AQ30,AQ31),AQ31),"") -> 
AN32: 29 | AR32: =IFERROR(IF(COUNTIF($AQ$3:AQ31,AQ32)>0,AQ32+COUNTIF($AQ$3:AQ31,AQ32),AQ32),"") -> 
AN33: 30 | AR33: =IFERROR(IF(COUNTIF($AQ$3:AQ32,AQ33)>0,AQ33+COUNTIF($AQ$3:AQ32,AQ33),AQ33),"") -> 
AN34: 31 | AR34: =IFERROR(IF(COUNTIF($AQ$3:AQ33,AQ34)>0,AQ34+COUNTIF($AQ$3:AQ33,AQ34),AQ34),"") -> 
AN35: 32 | AR35: =IFERROR(IF(COUNTIF($AQ$3:AQ34,AQ35)>0,AQ35+COUNTIF($AQ$3:AQ34,AQ35),AQ35),"") -> 
AN36: 33 | AO36: =IFERROR(INDEX(Lista_PartesCorpo,AN36,1),"") ->  | AR36: =IFERROR(IF(COUNTIF($AQ$3:AQ35,AQ36)>0,AQ36+COUNTIF($AQ$3:AQ35,AQ36),AQ36),"") -> 
AN37: 34 | AR37: =IFERROR(IF(COUNTIF($AQ$3:AQ36,AQ37)>0,AQ37+COUNTIF($AQ$3:AQ36,AQ37),AQ37),"") -> 
AN38: 35 | AR38: =IFERROR(IF(COUNTIF($AQ$3:AQ37,AQ38)>0,AQ38+COUNTIF($AQ$3:AQ37,AQ38),AQ38),"") -> 
AN39: 36 | AR39: =IFERROR(IF(COUNTIF($AQ$3:AQ38,AQ39)>0,AQ39+COUNTIF($AQ$3:AQ38,AQ39),AQ39),"") -> 
AN40: 37 | AR40: =IFERROR(IF(COUNTIF($AQ$3:AQ39,AQ40)>0,AQ40+COUNTIF($AQ$3:AQ39,AQ40),AQ40),"") -> 
AN41: 38 | AR41: =IFERROR(IF(COUNTIF($AQ$3:AQ40,AQ41)>0,AQ41+COUNTIF($AQ$3:AQ40,AQ41),AQ41),"") -> 
AN42: 39 | AR42: =IFERROR(IF(COUNTIF($AQ$3:AQ41,AQ42)>0,AQ42+COUNTIF($AQ$3:AQ41,AQ42),AQ42),"") -> 
AN43: 40 | AR43: =IFERROR(IF(COUNTIF($AQ$3:AQ42,AQ43)>0,AQ43+COUNTIF($AQ$3:AQ42,AQ43),AQ43),"") -> 
AN44: 41 | AR44: =IFERROR(IF(COUNTIF($AQ$3:AQ43,AQ44)>0,AQ44+COUNTIF($AQ$3:AQ43,AQ44),AQ44),"") -> 
AN45: 42 | AR45: =IFERROR(IF(COUNTIF($AQ$3:AQ44,AQ45)>0,AQ45+COUNTIF($AQ$3:AQ44,AQ45),AQ45),"") -> 
AN46: 43 | AR46: =IFERROR(IF(COUNTIF($AQ$3:AQ45,AQ46)>0,AQ46+COUNTIF($AQ$3:AQ45,AQ46),AQ46),"") -> 
AN47: 44 | AR47: =IFERROR(IF(COUNTIF($AQ$3:AQ46,AQ47)>0,AQ47+COUNTIF($AQ$3:AQ46,AQ47),AQ47),"") -> 
AN48: 45 | AR48: =IFERROR(IF(COUNTIF($AQ$3:AQ47,AQ48)>0,AQ48+COUNTIF($AQ$3:AQ47,AQ48),AQ48),"") -> 
AN49: 46 | AR49: =IFERROR(IF(COUNTIF($AQ$3:AQ48,AQ49)>0,AQ49+COUNTIF($AQ$3:AQ48,AQ49),AQ49),"") -> 
AN50: 47 | AR50: =IFERROR(IF(COUNTIF($AQ$3:AQ49,AQ50)>0,AQ50+COUNTIF($AQ$3:AQ49,AQ50),AQ50),"") -> 
AN51: 48 | AR51: =IFERROR(IF(COUNTIF($AQ$3:AQ50,AQ51)>0,AQ51+COUNTIF($AQ$3:AQ50,AQ51),AQ51),"") -> 
AN52: 49 | AR52: =IFERROR(IF(COUNTIF($AQ$3:AQ51,AQ52)>0,AQ52+COUNTIF($AQ$3:AQ51,AQ52),AQ52),"") -> 
AN53: 50 | AR53: =IFERROR(IF(COUNTIF($AQ$3:AQ52,AQ53)>0,AQ53+COUNTIF($AQ$3:AQ52,AQ53),AQ53),"") -> 
